[Event "Titled Tuesday Blitz August 22 Late 2023"]
[White "Swicarz, Maciej"]
[Black "Almiron, Antonio"]
[WhiteFideId "1113585"]
[BlackFideId "3701166"]
[WhiteElo "2510"]
[BlackElo "2640"]
[Result "1-0"]
[Round "8"]
[TimeControl "180+1"]
[Date "2023.08.22"]
[WhiteClock "0:00:14"]
[BlackClock "0:00:04"]
[Board "56"]

1. e4 {[%clk 0:03:00]}  c5 {[%clk 0:02:59]} 2. Nc3 {[%clk 0:03:00]}  Nc6 {[%clk 0:02:58]} 3. Bb5 {[%clk 0:02:59]}  Nd4 {[%clk 0:02:58]} 4. Bc4 {[%clk 0:02:59]}  e6 {[%clk 0:02:58]} 5. Nge2 {[%clk 0:02:58]}  a6 {[%clk 0:02:58]} 6. Nxd4 {[%clk 0:02:57]}  cxd4 {[%clk 0:02:57]} 7. Ne2 {[%clk 0:02:58]}  b5 {[%clk 0:02:54]} 8. Bb3 {[%clk 0:02:57]}  Qb6 {[%clk 0:02:53]} 9. O-O {[%clk 0:02:55]}  Bb7 {[%clk 0:02:53]} 10. d3 {[%clk 0:02:54]}  Ne7 {[%clk 0:02:52]} 11. f4 {[%clk 0:02:54]}  Nc6 {[%clk 0:02:47]} 12. Qe1 {[%clk 0:02:53]}  Be7 {[%clk 0:02:39]} 13. Qg3 {[%clk 0:02:52]}  O-O {[%clk 0:02:29]} 14. f5 {[%clk 0:02:52]}  Kh8 {[%clk 0:02:28]} 15. Bf4 {[%clk 0:02:38]}  Rac8 {[%clk 0:02:23]} 16. Bd6 {[%clk 0:02:34]}  Bxd6 {[%clk 0:02:18]} 17. Qxd6 {[%clk 0:02:34]}  Qc7 {[%clk 0:02:19]} 18. Qxc7 {[%clk 0:02:29]}  Rxc7 {[%clk 0:02:20]} 19. fxe6 {[%clk 0:02:29]}  dxe6 {[%clk 0:02:18]} 20. Bxe6 {[%clk 0:02:26]}  Nb4 {[%clk 0:02:12]} 21. Nxd4 {[%clk 0:02:09]}  Rd8 {[%clk 0:01:46]} 22. a3 {[%clk 0:01:56]}  Nxc2 {[%clk 0:01:30]} 23. Rac1 {[%clk 0:01:51]}  Rxd4 {[%clk 0:01:24]} 24. Rxf7 {[%clk 0:01:11]}  Rxf7 {[%clk 0:01:21]} 25. Bxf7 {[%clk 0:01:12]}  Rxd3 {[%clk 0:01:02]} 26. Rxc2 {[%clk 0:01:12]}  g6 {[%clk 0:01:02]} 27. Re2 {[%clk 0:00:58]}  Rd7 {[%clk 0:01:02]} 28. Bb3 {[%clk 0:00:53]}  Re7 {[%clk 0:00:57]} 29. Bc2 {[%clk 0:00:53]}  Re5 {[%clk 0:00:58]} 30. Kf2 {[%clk 0:00:53]}  Kg7 {[%clk 0:00:58]} 31. Ke3 {[%clk 0:00:52]}  Kf6 {[%clk 0:00:57]} 32. Kd4 {[%clk 0:00:48]}  Re8 {[%clk 0:00:57]} 33. e5+ {[%clk 0:00:47]}  Ke6 {[%clk 0:00:56]} 34. Bb3+ {[%clk 0:00:47]}  Ke7 {[%clk 0:00:56]} 35. Kc5 {[%clk 0:00:45]}  Bc8 {[%clk 0:00:49]} 36. Kb6 {[%clk 0:00:43]}  Rf8 {[%clk 0:00:38]} 37. Bd5 {[%clk 0:00:39]}  Bg4 {[%clk 0:00:21]} 38. Rc2 {[%clk 0:00:37]}  Rd8 {[%clk 0:00:15]} 39. Bb7 {[%clk 0:00:28]}  Ke6 {[%clk 0:00:08]} 40. Bc8+ {[%clk 0:00:23]}  Kxe5 {[%clk 0:00:06]} 41. Bxg4 {[%clk 0:00:23]}  Rd6+ {[%clk 0:00:07]} 42. Ka5 {[%clk 0:00:23]}  Kf4 {[%clk 0:00:06]} 43. Bf3 {[%clk 0:00:23]}  g5 {[%clk 0:00:07]} 44. a4 {[%clk 0:00:20]}  bxa4 {[%clk 0:00:07]} 45. Kxa4 {[%clk 0:00:21]}  g4 {[%clk 0:00:07]} 46. Be2 {[%clk 0:00:19]}  h5 {[%clk 0:00:07]} 47. Ka5 {[%clk 0:00:19]}  h4 {[%clk 0:00:08]} 48. Bxa6 {[%clk 0:00:18]}  g3 {[%clk 0:00:06]} 49. hxg3+ {[%clk 0:00:18]}  Kxg3 {[%clk 0:00:06]} 50. b4 {[%clk 0:00:18]}  Rf6 {[%clk 0:00:03]} 51. Bb7 {[%clk 0:00:17]}  Rf7 {[%clk 0:00:02]} 52. Kb6 {[%clk 0:00:17]}  Rf6+ {[%clk 0:00:02]} 53. Ka7 {[%clk 0:00:16]}  Rf7 {[%clk 0:00:02]} 54. b5 {[%clk 0:00:16]}  Rf5 {[%clk 0:00:02]} 55. b6 {[%clk 0:00:16]}  Ra5+ {[%clk 0:00:03]} 56. Kb8 {[%clk 0:00:16]}  Rf5 {[%clk 0:00:04]} 57. Bc6 {[%clk 0:00:14]}  Rf8+ {[%clk 0:00:04]} 1-0


[Site "https://www.chess.com"]

[Event "Titled Tuesday Blitz August 22 Late 2023"]
[White "Itkis, Boris"]
[Black "Papayan, Oleg"]
[WhiteFideId "1209167"]
[BlackFideId "4193911"]
[WhiteElo "2492"]
[BlackElo "2610"]
[Result "0-1"]
[Round "8"]
[TimeControl "180+1"]
[Date "2023.08.22"]
[WhiteClock "0:00:08"]
[BlackClock "0:00:41"]
[Board "59"]

1. d4 {[%clk 0:03:00]}  Nf6 {[%clk 0:02:57]} 2. Nc3 {[%clk 0:03:01]}  d5 {[%clk 0:02:48]} 3. Bf4 {[%clk 0:03:02]}  c6 {[%clk 0:02:48]} 4. e3 {[%clk 0:03:01]}  h5 {[%clk 0:02:47]} 5. Bd3 {[%clk 0:02:56]}  h4 {[%clk 0:02:47]} 6. h3 {[%clk 0:02:54]}  e6 {[%clk 0:02:46]} 7. Nf3 {[%clk 0:02:54]}  Nh5 {[%clk 0:02:45]} 8. Bh2 {[%clk 0:02:49]}  Nd7 {[%clk 0:02:44]} 9. O-O {[%clk 0:02:48]}  Nhf6 {[%clk 0:02:38]} 10. Re1 {[%clk 0:02:47]}  Bb4 {[%clk 0:02:38]} 11. a3 {[%clk 0:02:38]}  Ba5 {[%clk 0:02:37]} 12. b4 {[%clk 0:02:36]}  Bc7 {[%clk 0:02:37]} 13. e4 {[%clk 0:02:35]}  Bxh2+ {[%clk 0:02:36]} 14. Nxh2 {[%clk 0:02:34]}  dxe4 {[%clk 0:02:37]} 15. Nxe4 {[%clk 0:02:33]}  Nxe4 {[%clk 0:02:38]} 16. Bxe4 {[%clk 0:02:32]}  Nf6 {[%clk 0:02:39]} 17. Bf3 {[%clk 0:02:32]}  Kf8 {[%clk 0:02:36]} 18. c3 {[%clk 0:02:30]}  Bd7 {[%clk 0:02:31]} 19. Ng4 {[%clk 0:02:28]}  Nxg4 {[%clk 0:02:30]} 20. Bxg4 {[%clk 0:02:28]}  a5 {[%clk 0:02:30]} 21. Bf3 {[%clk 0:02:28]}  Rh6 {[%clk 0:02:24]} 22. Qd2 {[%clk 0:02:26]}  Kg8 {[%clk 0:02:21]} 23. c4 {[%clk 0:02:10]}  Rf6 {[%clk 0:02:14]} 24. Be4 {[%clk 0:02:05]}  Qc7 {[%clk 0:02:12]} 25. Rac1 {[%clk 0:02:00]}  axb4 {[%clk 0:02:12]} 26. axb4 {[%clk 0:02:00]}  Qf4 {[%clk 0:02:11]} 27. Re3 {[%clk 0:01:55]}  Ra3 {[%clk 0:02:08]} 28. Bf3 {[%clk 0:01:48]}  Ra8 {[%clk 0:02:00]} 29. Qd3 {[%clk 0:01:37]}  Ra2 {[%clk 0:01:50]} 30. Rd1 {[%clk 0:01:24]}  Qd6 {[%clk 0:01:45]} 31. Qb3 {[%clk 0:01:19]}  Ra8 {[%clk 0:01:41]} 32. Ree1 {[%clk 0:00:59]}  Rf4 {[%clk 0:01:37]} 33. Qe3 {[%clk 0:00:41]}  Ra2 {[%clk 0:01:27]} 34. d5 {[%clk 0:00:29]}  exd5 {[%clk 0:01:02]} 35. cxd5 {[%clk 0:00:28]}  Qxb4 {[%clk 0:01:02]} 36. dxc6 {[%clk 0:00:25]}  Bxc6 {[%clk 0:01:02]} 37. Bxc6 {[%clk 0:00:17]}  bxc6 {[%clk 0:01:03]} 38. Rb1 {[%clk 0:00:16]}  Qd6 {[%clk 0:00:53]} 39. Red1 {[%clk 0:00:13]}  Qf6 {[%clk 0:00:51]} 40. Rb8+ {[%clk 0:00:13]}  Kh7 {[%clk 0:00:51]} 41. Qd3+ {[%clk 0:00:12]}  g6 {[%clk 0:00:51]} 42. Qd8 {[%clk 0:00:07]}  Qxd8 {[%clk 0:00:43]} 43. Rdxd8 {[%clk 0:00:07]}  Rfxf2 {[%clk 0:00:42]} 44. Rh8+ {[%clk 0:00:07]}  Kg7 {[%clk 0:00:43]} 45. Rxh4 {[%clk 0:00:08]}  Rxg2+ {[%clk 0:00:43]} 46. Kf1 {[%clk 0:00:08]}  Rgf2+ {[%clk 0:00:42]} 47. Ke1 {[%clk 0:00:08]}  Rh2 {[%clk 0:00:42]} 48. Rb1 {[%clk 0:00:08]}  Rh1# {[%clk 0:00:41]} 0-1


[Site "https://www.chess.com"]

[Event "Titled Tuesday Blitz August 22 Late 2023"]
[White "Veiga, Jose Francisco R P Neves"]
[Black "Czerw, Dawid"]
[WhiteFideId "1930087"]
[BlackFideId "1145746"]
[WhiteElo "2598"]
[BlackElo "2463"]
[Result "1-0"]
[Round "8"]
[TimeControl "180+1"]
[Date "2023.08.22"]
[WhiteClock "0:00:51"]
[BlackClock "0:00:00"]
[Board "61"]

1. d4 {[%clk 0:03:00]}  Nf6 {[%clk 0:02:59]} 2. Nf3 {[%clk 0:03:01]}  g6 {[%clk 0:03:00]} 3. Bg5 {[%clk 0:03:01]}  Bg7 {[%clk 0:02:59]} 4. Nbd2 {[%clk 0:03:01]}  O-O {[%clk 0:03:00]} 5. e4 {[%clk 0:03:01]}  d6 {[%clk 0:03:00]} 6. Bd3 {[%clk 0:03:01]}  c5 {[%clk 0:03:00]} 7. c3 {[%clk 0:03:01]}  Nbd7 {[%clk 0:03:00]} 8. O-O {[%clk 0:03:01]}  b6 {[%clk 0:03:00]} 9. h3 {[%clk 0:03:00]}  Bb7 {[%clk 0:03:00]} 10. Re1 {[%clk 0:03:01]}  Qc7 {[%clk 0:03:01]} 11. a4 {[%clk 0:03:00]}  a6 {[%clk 0:03:00]} 12. e5 {[%clk 0:02:54]}  dxe5 {[%clk 0:02:51]} 13. dxe5 {[%clk 0:02:54]}  Nd5 {[%clk 0:02:49]} 14. e6 {[%clk 0:02:52]}  fxe6 {[%clk 0:02:46]} 15. Rxe6 {[%clk 0:02:50]}  N7f6 {[%clk 0:02:44]} 16. Nc4 {[%clk 0:02:43]}  Rad8 {[%clk 0:02:42]} 17. Qe2 {[%clk 0:02:25]}  b5 {[%clk 0:02:37]} 18. axb5 {[%clk 0:02:24]}  axb5 {[%clk 0:02:38]} 19. Nce5 {[%clk 0:02:17]}  c4 {[%clk 0:02:34]} 20. Bc2 {[%clk 0:02:16]}  Ra8 {[%clk 0:02:25]} 21. Re1 {[%clk 0:02:15]}  Qc8 {[%clk 0:02:16]} 22. Nd4 {[%clk 0:02:14]}  Nh5 {[%clk 0:02:02]} 23. g3 {[%clk 0:01:57]}  h6 {[%clk 0:01:48]} 24. Bxg6 {[%clk 0:01:52]}  Nxg3 {[%clk 0:01:47]} 25. fxg3 {[%clk 0:01:50]}  hxg5 {[%clk 0:01:47]} 26. Qh5 {[%clk 0:01:46]}  Rf6 {[%clk 0:01:39]} 27. Bf7+ {[%clk 0:01:35]}  Kf8 {[%clk 0:01:28]} 28. Rxf6 {[%clk 0:01:29]}  Nxf6 {[%clk 0:01:07]} 29. Qg6 {[%clk 0:01:28]}  Ra6 {[%clk 0:00:42]} 30. Nf5 {[%clk 0:01:09]}  Ne8 {[%clk 0:00:40]} 31. Qh7 {[%clk 0:01:06]}  Qc5+ {[%clk 0:00:00]} 32. Kf1 {[%clk 0:00:51]} 1-0


[Site "https://www.chess.com"]

[Event "Titled Tuesday Blitz August 22 Late 2023"]
[White "Kirillov, Dmitry"]
[Black "Leenhouts, Koen"]
[WhiteFideId "34180572"]
[BlackFideId "1008439"]
[WhiteElo "2482"]
[BlackElo "2593"]
[Result "0-1"]
[Round "8"]
[TimeControl "180+1"]
[Date "2023.08.22"]
[WhiteClock "0:00:06"]
[BlackClock "0:00:11"]
[Board "62"]

1. d4 {[%clk 0:02:52]}  Nf6 {[%clk 0:02:58]} 2. Nf3 {[%clk 0:02:52]}  g6 {[%clk 0:02:58]} 3. g3 {[%clk 0:02:52]}  Bg7 {[%clk 0:02:58]} 4. Bg2 {[%clk 0:02:53]}  O-O {[%clk 0:02:52]} 5. O-O {[%clk 0:02:53]}  d5 {[%clk 0:02:52]} 6. c4 {[%clk 0:02:51]}  c6 {[%clk 0:02:52]} 7. cxd5 {[%clk 0:02:51]}  cxd5 {[%clk 0:02:50]} 8. Ne5 {[%clk 0:02:51]}  Ng4 {[%clk 0:02:50]} 9. Nxg4 {[%clk 0:02:42]}  Bxg4 {[%clk 0:02:51]} 10. Nc3 {[%clk 0:02:42]}  Nc6 {[%clk 0:02:48]} 11. Be3 {[%clk 0:02:39]}  Be6 {[%clk 0:02:41]} 12. Rc1 {[%clk 0:02:37]}  Rc8 {[%clk 0:02:35]} 13. Qa4 {[%clk 0:02:36]}  Qd7 {[%clk 0:02:27]} 14. Rfd1 {[%clk 0:02:36]}  Rfd8 {[%clk 0:02:22]} 15. a3 {[%clk 0:02:35]}  a6 {[%clk 0:02:20]} 16. h4 {[%clk 0:02:28]}  h5 {[%clk 0:02:16]} 17. Kh2 {[%clk 0:02:28]}  Bf6 {[%clk 0:02:03]} 18. Bf4 {[%clk 0:02:11]}  Kg7 {[%clk 0:01:53]} 19. Be3 {[%clk 0:02:11]}  Kh7 {[%clk 0:01:41]} 20. Bf3 {[%clk 0:02:09]}  Bg7 {[%clk 0:01:30]} 21. Bg2 {[%clk 0:02:02]}  Qc7 {[%clk 0:01:17]} 22. Qc2 {[%clk 0:01:46]}  Na5 {[%clk 0:01:13]} 23. Bf3 {[%clk 0:01:45]}  Nc4 {[%clk 0:01:10]} 24. Bf4 {[%clk 0:01:41]}  Qb6 {[%clk 0:01:09]} 25. Na4 {[%clk 0:01:39]}  Qb5 {[%clk 0:01:04]} 26. b3 {[%clk 0:01:26]}  Nxa3 {[%clk 0:00:39]} 27. Qa2 {[%clk 0:01:25]}  Rxc1 {[%clk 0:00:31]} 28. Rxc1 {[%clk 0:01:26]}  Qb4 {[%clk 0:00:29]} 29. Bd2 {[%clk 0:01:24]}  Qxd4 {[%clk 0:00:29]} 30. e3 {[%clk 0:01:18]}  Qd3 {[%clk 0:00:26]} 31. Nc5 {[%clk 0:01:16]}  Qf5 {[%clk 0:00:25]} 32. Nxe6 {[%clk 0:01:11]}  fxe6 {[%clk 0:00:25]} 33. Qxa3 {[%clk 0:00:55]}  Qxf3 {[%clk 0:00:23]} 34. Be1 {[%clk 0:00:56]}  Bf6 {[%clk 0:00:16]} 35. Qa5 {[%clk 0:00:52]}  Rg8 {[%clk 0:00:15]} 36. Qc7 {[%clk 0:00:50]}  g5 {[%clk 0:00:13]} 37. hxg5 {[%clk 0:00:49]}  Rxg5 {[%clk 0:00:14]} 38. Qf4 {[%clk 0:00:48]}  Qxf4 {[%clk 0:00:13]} 39. exf4 {[%clk 0:00:45]}  Rg7 {[%clk 0:00:14]} 40. Rc7 {[%clk 0:00:45]}  e5 {[%clk 0:00:14]} 41. fxe5 {[%clk 0:00:43]}  Bxe5 {[%clk 0:00:15]} 42. Rxb7 {[%clk 0:00:44]}  h4 {[%clk 0:00:15]} 43. Ra7 {[%clk 0:00:41]}  hxg3+ {[%clk 0:00:14]} 44. fxg3 {[%clk 0:00:42]}  d4 {[%clk 0:00:13]} 45. Rxa6 {[%clk 0:00:42]}  d3 {[%clk 0:00:12]} 46. Ra7 {[%clk 0:00:35]}  Bd6 {[%clk 0:00:11]} 47. Ra4 {[%clk 0:00:33]}  e5 {[%clk 0:00:07]} 48. Ra6 {[%clk 0:00:31]}  Rd7 {[%clk 0:00:07]} 49. Bd2 {[%clk 0:00:29]}  e4 {[%clk 0:00:06]} 50. b4 {[%clk 0:00:27]}  Be5 {[%clk 0:00:06]} 51. Re6 {[%clk 0:00:24]}  Rd5 {[%clk 0:00:06]} 52. Kg2 {[%clk 0:00:22]}  Kg7 {[%clk 0:00:07]} 53. Kf2 {[%clk 0:00:20]}  Kf7 {[%clk 0:00:07]} 54. Rc6 {[%clk 0:00:17]}  Bd4+ {[%clk 0:00:08]} 55. Ke1 {[%clk 0:00:05]}  e3 {[%clk 0:00:08]} 56. Rc7+ {[%clk 0:00:04]}  Ke6 {[%clk 0:00:08]} 57. Rc6+ {[%clk 0:00:03]}  Kd7 {[%clk 0:00:08]} 58. Rg6 {[%clk 0:00:03]}  exd2+ {[%clk 0:00:07]} 59. Kxd2 {[%clk 0:00:04]}  Be3+ {[%clk 0:00:07]} 60. Kd1 {[%clk 0:00:03]}  d2 {[%clk 0:00:08]} 61. Rg7+ {[%clk 0:00:02]}  Kc6 {[%clk 0:00:07]} 62. Rg6+ {[%clk 0:00:02]}  Kb5 {[%clk 0:00:06]} 63. Rg4 {[%clk 0:00:03]}  Bg5 {[%clk 0:00:06]} 64. Re4 {[%clk 0:00:03]}  Ka4 {[%clk 0:00:05]} 65. g4 {[%clk 0:00:04]}  Kb3 {[%clk 0:00:06]} 66. b5 {[%clk 0:00:03]}  Rc5 {[%clk 0:00:05]} 67. Ke2 {[%clk 0:00:02]}  Rc1 {[%clk 0:00:04]} 68. Rd4 {[%clk 0:00:02]}  Re1+ {[%clk 0:00:03]} 69. Kf2 {[%clk 0:00:02]}  d1=Q {[%clk 0:00:04]} 70. Rxd1 {[%clk 0:00:03]}  Rxd1 {[%clk 0:00:04]} 71. b6 {[%clk 0:00:04]}  Rd2+ {[%clk 0:00:05]} 72. Kf3 {[%clk 0:00:04]}  Rd6 {[%clk 0:00:06]} 73. Ke4 {[%clk 0:00:05]}  Rxb6 {[%clk 0:00:06]} 74. Kf5 {[%clk 0:00:06]}  Rb5+ {[%clk 0:00:07]} 75. Kg6 {[%clk 0:00:06]}  Kc4 {[%clk 0:00:08]} 76. Kh5 {[%clk 0:00:07]}  Kc3 {[%clk 0:00:08]} 77. Kg6 {[%clk 0:00:08]}  Kd3 {[%clk 0:00:09]} 78. Kh7 {[%clk 0:00:09]}  Ke3 {[%clk 0:00:10]} 79. Kg8 {[%clk 0:00:10]}  Kf4 {[%clk 0:00:10]} 80. Kf7 {[%clk 0:00:06]}  Kxg4 {[%clk 0:00:11]} 0-1


[Site "https://www.chess.com"]

[Event "Titled Tuesday Blitz August 22 Late 2023"]
[White "Principe, Gerson"]
[Black "Onthequiet"]
[WhiteFideId "3804550"]
[WhiteElo "2580"]
[BlackElo "2445"]
[Result "1-0"]
[Round "8"]
[TimeControl "180+1"]
[Date "2023.08.22"]
[WhiteClock "0:01:41"]
[BlackClock "0:01:53"]
[Board "66"]

1. Nf3 {[%clk 0:02:57]}  d5 {[%clk 0:02:58]} 2. b3 {[%clk 0:02:57]}  Nf6 {[%clk 0:02:58]} 3. Bb2 {[%clk 0:02:58]}  Nbd7 {[%clk 0:02:57]} 4. d4 {[%clk 0:02:57]}  b6 {[%clk 0:02:54]} 5. e3 {[%clk 0:02:56]}  Bb7 {[%clk 0:02:54]} 6. Bd3 {[%clk 0:02:56]}  e6 {[%clk 0:02:53]} 7. Nbd2 {[%clk 0:02:54]}  Be7 {[%clk 0:02:54]} 8. Ne5 {[%clk 0:02:54]}  Nxe5 {[%clk 0:02:51]} 9. dxe5 {[%clk 0:02:54]}  Nd7 {[%clk 0:02:51]} 10. O-O {[%clk 0:02:51]}  a5 {[%clk 0:02:37]} 11. f4 {[%clk 0:02:46]}  g6 {[%clk 0:02:37]} 12. Nf3 {[%clk 0:02:33]}  Ba6 {[%clk 0:02:33]} 13. Bxa6 {[%clk 0:02:26]}  Rxa6 {[%clk 0:02:32]} 14. Qe2 {[%clk 0:02:26]}  Qa8 {[%clk 0:02:29]} 15. c4 {[%clk 0:02:21]}  dxc4 {[%clk 0:02:25]} 16. Qxc4 {[%clk 0:02:16]}  Nc5 {[%clk 0:02:23]} 17. Rad1 {[%clk 0:02:07]}  O-O {[%clk 0:02:22]} 18. Rd4 {[%clk 0:02:02]}  a4 {[%clk 0:02:14]} 19. b4 {[%clk 0:02:00]}  a3 {[%clk 0:02:14]} 20. Bc1 {[%clk 0:01:52]}  Ra4 {[%clk 0:02:09]} 21. Qc2 {[%clk 0:01:46]}  Na6 {[%clk 0:02:01]} 22. Qxa4 {[%clk 0:01:45]}  Nxb4 {[%clk 0:01:59]} 23. Rxb4 {[%clk 0:01:42]}  Bxb4 {[%clk 0:01:53]} 24. Qxb4 {[%clk 0:01:41]} 1-0


[Site "https://www.chess.com"]

[Event "Titled Tuesday Blitz August 22 Late 2023"]
[White "Boor, Carl"]
[Black "Karas, Marek"]
[WhiteFideId "2017008"]
[BlackFideId "14928558"]
[WhiteElo "2573"]
[BlackElo "2437"]
[Result "0-1"]
[Round "8"]
[TimeControl "180+1"]
[Date "2023.08.22"]
[WhiteClock "0:00:03"]
[BlackClock "0:00:27"]
[Board "68"]

1. d4 {[%clk 0:03:00]}  d5 {[%clk 0:03:00]} 2. c4 {[%clk 0:03:00]}  e6 {[%clk 0:03:00]} 3. Nf3 {[%clk 0:02:59]}  Nf6 {[%clk 0:02:57]} 4. g3 {[%clk 0:02:58]}  h6 {[%clk 0:02:57]} 5. Bg2 {[%clk 0:02:58]}  Bd6 {[%clk 0:02:57]} 6. O-O {[%clk 0:02:57]}  O-O {[%clk 0:02:57]} 7. Qc2 {[%clk 0:02:57]}  b6 {[%clk 0:02:54]} 8. Bf4 {[%clk 0:02:40]}  Bxf4 {[%clk 0:02:44]} 9. gxf4 {[%clk 0:02:40]}  Bb7 {[%clk 0:02:44]} 10. Nbd2 {[%clk 0:02:35]}  Nbd7 {[%clk 0:02:37]} 11. e3 {[%clk 0:02:25]}  c5 {[%clk 0:02:36]} 12. cxd5 {[%clk 0:02:18]}  Nxd5 {[%clk 0:02:25]} 13. Rfd1 {[%clk 0:02:13]}  Qe7 {[%clk 0:02:24]} 14. Rac1 {[%clk 0:02:07]}  Rac8 {[%clk 0:02:21]} 15. Qd3 {[%clk 0:01:56]}  cxd4 {[%clk 0:02:13]} 16. Nxd4 {[%clk 0:01:50]}  Nc5 {[%clk 0:02:12]} 17. Qa3 {[%clk 0:01:50]}  a5 {[%clk 0:01:38]} 18. N2b3 {[%clk 0:01:45]}  Nxb3 {[%clk 0:01:31]} 19. Qxb3 {[%clk 0:01:29]}  Qb4 {[%clk 0:01:26]} 20. a3 {[%clk 0:01:17]}  Qxb3 {[%clk 0:01:22]} 21. Nxb3 {[%clk 0:01:16]}  Ba8 {[%clk 0:01:19]} 22. Nd4 {[%clk 0:01:14]}  Rfd8 {[%clk 0:01:04]} 23. Nb5 {[%clk 0:01:12]}  Rxc1 {[%clk 0:00:58]} 24. Rxc1 {[%clk 0:01:10]}  Nf6 {[%clk 0:00:58]} 25. Bb7 {[%clk 0:01:09]}  Bxb7 {[%clk 0:00:57]} 26. Rc7 {[%clk 0:00:20]}  Bf3 {[%clk 0:00:54]} 27. Nd4 {[%clk 0:00:20]}  Be4 {[%clk 0:00:48]} 28. f3 {[%clk 0:00:20]}  Bg6 {[%clk 0:00:43]} 29. Kf2 {[%clk 0:00:18]}  Nd5 {[%clk 0:00:42]} 30. Rb7 {[%clk 0:00:17]}  Nxf4 {[%clk 0:00:42]} 31. Rxb6 {[%clk 0:00:17]}  Nd3+ {[%clk 0:00:42]} 32. Ke2 {[%clk 0:00:17]}  e5 {[%clk 0:00:41]} 33. Nc6 {[%clk 0:00:17]}  Nc1+ {[%clk 0:00:39]} 34. Ke1 {[%clk 0:00:16]}  Rd3 {[%clk 0:00:39]} 35. Rb8+ {[%clk 0:00:11]}  Kh7 {[%clk 0:00:38]} 36. Nxe5 {[%clk 0:00:11]}  Rxe3+ {[%clk 0:00:38]} 37. Kd2 {[%clk 0:00:11]}  Rxe5 {[%clk 0:00:37]} 38. Kxc1 {[%clk 0:00:11]}  Rc5+ {[%clk 0:00:33]} 39. Kd2 {[%clk 0:00:11]}  Rc2+ {[%clk 0:00:34]} 40. Ke3 {[%clk 0:00:11]}  Rxh2 {[%clk 0:00:33]} 41. b4 {[%clk 0:00:12]}  axb4 {[%clk 0:00:33]} 42. axb4 {[%clk 0:00:12]}  Rb2 {[%clk 0:00:33]} 43. Kf4 {[%clk 0:00:12]}  h5 {[%clk 0:00:33]} 44. Kg3 {[%clk 0:00:12]}  Rb3 {[%clk 0:00:33]} 45. b5 {[%clk 0:00:11]}  Be4 {[%clk 0:00:32]} 46. Kh4 {[%clk 0:00:12]}  Bxf3 {[%clk 0:00:32]} 47. b6 {[%clk 0:00:12]}  Bg4 {[%clk 0:00:32]} 48. b7 {[%clk 0:00:11]}  f6 {[%clk 0:00:28]} 49. Rh8+ {[%clk 0:00:05]}  Kxh8 {[%clk 0:00:27]} 50. b8=Q+ {[%clk 0:00:03]}  Rxb8 {[%clk 0:00:27]} 0-1


[Site "https://www.chess.com"]

[Event "Titled Tuesday Blitz August 22 Late 2023"]
[White "Ovezdurdyyeva, Jemal"]
[Black "brm72"]
[WhiteFideId "14001888"]
[WhiteElo "2407"]
[BlackElo "2559"]
[Result "1-0"]
[Round "8"]
[TimeControl "180+1"]
[Date "2023.08.22"]
[WhiteClock "0:01:43"]
[BlackClock "0:01:02"]
[Board "72"]

1. e4 {[%clk 0:03:00]}  c5 {[%clk 0:02:59]} 2. Nf3 {[%clk 0:03:00]}  Nc6 {[%clk 0:02:59]} 3. c3 {[%clk 0:03:00]}  d5 {[%clk 0:02:59]} 4. exd5 {[%clk 0:02:55]}  Qxd5 {[%clk 0:03:00]} 5. d4 {[%clk 0:02:55]}  Bf5 {[%clk 0:03:00]} 6. Be3 {[%clk 0:02:51]}  e6 {[%clk 0:02:53]} 7. dxc5 {[%clk 0:02:47]}  Qxd1+ {[%clk 0:02:52]} 8. Kxd1 {[%clk 0:02:48]}  Nf6 {[%clk 0:02:52]} 9. Nbd2 {[%clk 0:02:48]}  Ng4 {[%clk 0:02:50]} 10. b4 {[%clk 0:02:47]}  Nxe3+ {[%clk 0:02:16]} 11. fxe3 {[%clk 0:02:46]}  O-O-O {[%clk 0:02:11]} 12. Bb5 {[%clk 0:02:42]}  f6 {[%clk 0:02:04]} 13. Bxc6 {[%clk 0:02:36]}  bxc6 {[%clk 0:02:05]} 14. Nd4 {[%clk 0:02:37]}  Bg4+ {[%clk 0:01:53]} 15. Kc2 {[%clk 0:02:36]}  Kc7 {[%clk 0:01:52]} 16. h3 {[%clk 0:02:35]}  e5 {[%clk 0:01:52]} 17. hxg4 {[%clk 0:02:35]}  exd4 {[%clk 0:01:53]} 18. cxd4 {[%clk 0:02:34]}  Rd5 {[%clk 0:01:46]} 19. Nf3 {[%clk 0:02:31]}  h5 {[%clk 0:01:45]} 20. e4 {[%clk 0:02:29]}  Rd8 {[%clk 0:01:34]} 21. gxh5 {[%clk 0:02:29]}  Re8 {[%clk 0:01:33]} 22. Rae1 {[%clk 0:02:27]}  a5 {[%clk 0:01:33]} 23. a3 {[%clk 0:02:23]}  Ra8 {[%clk 0:01:32]} 24. Kb3 {[%clk 0:02:23]}  Be7 {[%clk 0:01:32]} 25. g4 {[%clk 0:02:21]}  Kd7 {[%clk 0:01:31]} 26. Ra1 {[%clk 0:02:19]}  Rhb8 {[%clk 0:01:30]} 27. Kc4 {[%clk 0:02:19]}  Re8 {[%clk 0:01:28]} 28. Rhe1 {[%clk 0:02:17]}  Bd8 {[%clk 0:01:28]} 29. d5 {[%clk 0:02:17]}  Bc7 {[%clk 0:01:28]} 30. d6 {[%clk 0:02:15]}  Bd8 {[%clk 0:01:28]} 31. Nd4 {[%clk 0:02:15]}  Re5 {[%clk 0:01:27]} 32. Nf5 {[%clk 0:02:14]}  Rb8 {[%clk 0:01:25]} 33. Nxg7 {[%clk 0:02:13]}  Rg5 {[%clk 0:01:24]} 34. h6 {[%clk 0:02:09]}  Rxg4 {[%clk 0:01:24]} 35. Rh1 {[%clk 0:02:07]}  f5 {[%clk 0:01:22]} 36. h7 {[%clk 0:02:06]}  Bf6 {[%clk 0:01:21]} 37. Nxf5 {[%clk 0:02:03]}  Bxa1 {[%clk 0:01:21]} 38. Rxa1 {[%clk 0:02:02]}  Rh8 {[%clk 0:01:21]} 39. Kd4 {[%clk 0:02:00]}  Rxh7 {[%clk 0:01:17]} 40. bxa5 {[%clk 0:02:00]}  Rh8 {[%clk 0:01:10]} 41. Rb1 {[%clk 0:01:59]}  Ra8 {[%clk 0:01:10]} 42. Rb7+ {[%clk 0:01:59]}  Ke6 {[%clk 0:01:10]} 43. Re7+ {[%clk 0:01:56]}  Kf6 {[%clk 0:01:10]} 44. Rc7 {[%clk 0:01:56]}  Rxa5 {[%clk 0:01:10]} 45. Rxc6 {[%clk 0:01:54]}  Ra4+ {[%clk 0:01:09]} 46. Kd3 {[%clk 0:01:47]}  Rgxe4 {[%clk 0:01:07]} 47. d7+ {[%clk 0:01:47]}  Kxf5 {[%clk 0:01:06]} 48. d8=Q {[%clk 0:01:47]}  Rxa3+ {[%clk 0:01:05]} 49. Kd2 {[%clk 0:01:46]}  Ra2+ {[%clk 0:01:03]} 50. Kc3 {[%clk 0:01:45]}  Ra3+ {[%clk 0:01:03]} 51. Kb2 {[%clk 0:01:44]}  Rae3 {[%clk 0:01:03]} 52. Rf6+ {[%clk 0:01:44]}  Kg4 {[%clk 0:01:03]} 53. Qg8+ {[%clk 0:01:43]}  Kh3 {[%clk 0:01:04]} 54. Rh6+ {[%clk 0:01:44]}  Rh4 {[%clk 0:01:04]} 55. Rxh4+ {[%clk 0:01:44]}  Kxh4 {[%clk 0:01:05]} 56. Qh7+ {[%clk 0:01:43]}  Kg3 {[%clk 0:01:05]} 57. Qg6+ {[%clk 0:01:43]}  Kf3 {[%clk 0:01:06]} 58. Qf6+ {[%clk 0:01:44]}  Ke2 {[%clk 0:01:02]} 59. c6 {[%clk 0:01:43]} 1-0


[Site "https://www.chess.com"]